fUST/lending_fUST_20250206
["ID","MTS","AMOUNT","RATE_DAILY","PERIOD"]
[351944232,1738855840870,-17590.59,0.00013835,2]
[351944233,1738855840879,-500.0,0.00013835,2]
[351944234,1738855840889,-500.0,0.00013835,2]
[351944235,1738855840899,-36006.84,0.00013835,2]
[351944236,1738855840908,-500.0,0.00013835,2]
[351944237,1738855840917,-1022.1,0.00013835,2]
[351944238,1738855840927,-500.0,0.00013835,2]
[351944239,1738855840936,-1229.36,0.00013835,2]
[351944240,1738855840945,-1533.5,0.00013835,2]
[351944241,1738855840955,-520.32,0.00013835,2]
[351944242,1738855840965,-803.41,0.00013835,2]
[351944243,1738855840975,-500.0,0.00013835,2]
[351944244,1738855840984,-1671.88,0.00013835,2]
[351944245,1738855840993,-623.54,0.00013835,2]
[351944246,1738855841003,-2363.6,0.00013835,2]
[351944247,1738855841013,-500.0,0.00013835,2]
[351944248,1738855841022,-500.0,0.00013835,2]
[351944249,1738855841031,-500.0,0.00013835,2]
[351944250,1738855841041,-2313.89,0.00013835,2]
[351944251,1738855841050,-882.91,0.00013835,2]
[351944252,1738855841060,-1471.63,0.00013835,2]
[351944253,1738855841070,-500.0,0.00013835,2]
[351944254,1738855841079,-500.0,0.00013835,2]
[351944255,1738855841089,-894.96,0.00013835,2]
[351944256,1738855841098,-855.04,0.00013835,2]
[351944257,1738855841111,-1395.7,0.00013835,2]
[351944258,1738855841121,-3771.87,0.00013835,2]
[351944259,1738855841131,-506.3,0.00013835,2]
[351944260,1738855841141,-500.0,0.00013835,2]
[351944261,1738855841150,-705.15,0.00013835,2]
[351944262,1738855841160,-3228.54,0.00013835,2]
[351944263,1738855841170,-500.0,0.00013835,2]
[351944264,1738855841180,-9115.51,0.00013835,2]
[351944265,1738855841190,-1831.46,0.00013835,2]
[351944266,1738855841200,-500.0,0.00013835,2]
[351944267,1738855841210,-1136.51,0.00013835,2]
[351944268,1738855841219,-500.0,0.00013835,2]
[351944269,1738855841229,-500.0,0.00013835,2]
[351944270,1738855841239,-500.0,0.00013835,2]
[351944271,1738855841248,-500.0,0.00013835,2]
[351944272,1738855841257,-540.80611614,0.00013835,2]
[351944273,1738855841267,-1024.74,0.00013835,2]
[351944274,1738855841276,-614.09179907,0.0001386,2]
[351944275,1738855841286,-166.66666667,0.00013863,2]
[351944276,1738855841295,-213.16247813,0.000139,2]
[351944277,1738855841304,-247.4439254,0.000139,2]
[351944278,1738855841314,-153.0,0.000139,2]
[351944279,1738855841323,-500.0,0.00013972,2]
[351944280,1738855841333,-318.02772529,0.00013972,2]
[351944281,1738855841342,-500.0,0.00013972,2]
[351944282,1738855841352,-1099.82,0.00013972,2]
[351944283,1738855841367,-500.0,0.00013972,2]
[351944284,1738855841376,-500.0,0.00013972,2]
[351944285,1738855841386,-500.0,0.00013972,2]
[351944286,1738855841396,-500.0,0.00013972,2]
[351944287,1738855841406,-500.0,0.00013972,2]
[351944288,1738855841419,-500.0,0.00013972,2]
[351944289,1738855841429,-639.87,0.00013972,2]
[351944290,1738855841438,-784.74,0.00013972,2]
[351944291,1738855841448,-500.0,0.00013972,2]
[351944292,1738855841460,-500.0,0.00013972,2]
[351944293,1738855841470,-554.36,0.00013972,2]
[351944294,1738855841480,-656.46,0.00013972,2]
[351944295,1738855841493,-500.0,0.00013972,2]
[351944296,1738855841503,-783.56,0.00013972,2]
[351944297,1738855841513,-500.0,0.00013972,2]
[351944298,1738855841523,-500.0,0.00013972,2]
[351944299,1738855841532,-500.0,0.00013972,2]
[351944300,1738855841543,-500.0,0.00013972,2]
[351944301,1738855841553,-500.0,0.00013972,2]
[351944302,1738855841562,-500.0,0.00013972,2]
[351944303,1738855841572,-1068.12,0.00013972,2]
[351944304,1738855841583,-500.0,0.00013972,2]
[351944305,1738855841593,-500.0,0.00013972,2]
[351944306,1738855841602,-891.36,0.00013972,2]
[351944307,1738855841614,-395.82129603,0.00013972,2]
[351944308,1738855841624,-500.0,0.00013972,2]
[351944309,1738855841633,-1575.85,0.00013972,2]
[351944310,1738855841642,-1604.33,0.00013972,2]
[351944311,1738855841651,-634.35,0.00013972,2]
[351944312,1738855841661,-500.0,0.00013972,2]
[351944313,1738855841671,-500.0,0.00013972,2]
[351944314,1738855841680,-500.0,0.00013972,2]
[351944315,1738855841690,-500.0,0.00013972,2]
[351944316,1738855841699,-1085.4,0.00013972,2]
[351944317,1738855841708,-629.98221922,0.00013972,2]
[351944318,1738855841718,-1068.38,0.00013972,2]
[351944319,1738855841727,-1420.56,0.00013972,2]
[351944320,1738855841737,-500.0,0.00013972,2]
[351944321,1738855841747,-500.0,0.00013972,2]
[351944322,1738855841756,-500.0,0.00013972,2]
[351944323,1738855841766,-500.0,0.00013972,2]
[351944324,1738855841775,-3501.32,0.00013972,2]
[351944325,1738855841784,-1296.02,0.00013972,2]
[351944326,1738855841794,-1412.14,0.00013972,2]
[351944327,1738855841803,-737.34,0.00013972,2]
[351944328,1738855841813,-608.58,0.00013972,2]
[351944329,1738855841823,-3886.25,0.00013972,2]
[351944330,1738855841832,-1070.88,0.00013972,2]
[351944331,1738855841841,-500.0,0.00013972,2]
[351944332,1738855841851,-500.0,0.00013972,2]
[351944333,1738855841862,-846.17,0.00013972,2]
[351944334,1738855841872,-500.0,0.00013972,2]
[351944335,1738855841881,-500.0,0.00013972,2]
[351944336,1738855841891,-96.02488661,0.00013972,2]
[351944337,1738855841908,-1593.51511339,0.00013972,2]
[351944338,1738855841917,-739.77,0.00013972,2]
[351944339,1738855841926,-500.0,0.00013972,2]
[351944340,1738855841936,-1818.59,0.00013972,2]
[351944341,1738855841945,-1081.68,0.00013972,2]
[351944342,1738855841955,-712.22,0.00013972,2]
[351944343,1738855841964,-1093.29,0.00013972,2]
[351944344,1738855841973,-500.0,0.00013972,2]
[351944345,1738855841983,-791.37,0.00013972,2]
[351944346,1738855841993,-3150.73,0.00013972,2]
[351944347,1738855842003,-1206.52,0.00013972,2]
[351944348,1738855842014,-631.82,0.00013972,2]
[351944349,1738855842024,-500.0,0.00013972,2]
[351944350,1738855842034,-13824.48,0.00013972,2]
[351944351,1738855842045,-6878.96,0.00013972,2]
[351944352,1738855842055,-500.0,0.00013972,2]
[351944353,1738855842065,-500.0,0.00013972,2]
[351944354,1738855842075,-500.0,0.00013972,2]
[351944355,1738855842086,-500.0,0.00013972,2]
[351944356,1738855842096,-500.0,0.00013972,2]
[351944357,1738855842107,-725.78,0.00013972,2]
[351944358,1738855842117,-1062.18,0.00013972,2]
[351944359,1738855842127,-4363.92,0.00013972,2]
[351944360,1738855842137,-500.0,0.00013972,2]
[351944361,1738855842147,-1357.22,0.00013972,2]
[351944362,1738855842156,-500.0,0.00013972,2]
[351944363,1738855842166,-1695.35,0.00013972,2]
[351944364,1738855842175,-500.0,0.00013972,2]
[351944365,1738855842185,-500.0,0.00013972,2]
[351944366,1738855842194,-1311.73,0.00013972,2]
[351944367,1738855842204,-519.49698632,0.00013972,2]
[351944368,1738855842214,-617.38,0.00013972,2]
[351944369,1738855842223,-6240.21,0.00013972,2]
[351944370,1738855842233,-383.50603699,0.00013972,2]
[351944371,1738855842243,-4300.37,0.00013972,2]
[351944372,1738855842252,-509.96,0.00013972,2]
[351944373,1738855842261,-279.6254206,0.00013972,2]
[351944374,1738855842271,-2257.7,0.00013972,2]
[351944375,1738855842281,-500.0,0.00013972,2]
[351944376,1738855842290,-1203.39,0.00013972,2]
[351944377,1738855842300,-729.44,0.00013972,2]
[351944378,1738855842309,-298.31848083,0.00013972,2]
[351944379,1738855842319,-500.0,0.00013972,2]
[351944380,1738855842328,-500.0,0.00013972,2]
[351944381,1738855842338,-2042.92,0.00013972,2]
[351944382,1738855842347,-17590.59,0.00013972,2]
[351944383,1738855842358,-500.0,0.00013972,2]
[351944384,1738855842367,-500.0,0.00013972,2]
[351944385,1738855842377,-36006.84,0.00013972,2]
[351944386,1738855842386,-500.0,0.00013972,2]
[351944387,1738855842395,-1022.1,0.00013972,2]
[351944388,1738855842408,-500.0,0.00013972,2]
[351944389,1738855842418,-1229.36,0.00013972,2]
[351944390,1738855842427,-1533.5,0.00013972,2]
[351944391,1738855842436,-520.32,0.00013972,2]
[351944392,1738855842446,-803.41,0.00013972,2]
[351944393,1738855842455,-500.0,0.00013972,2]
[351944394,1738855842464,-623.54,0.00013972,2]
[351944395,1738855842473,-1671.88,0.00013972,2]
[351944396,1738855842482,-2363.6,0.00013972,2]
[351944397,1738855842493,-500.0,0.00013972,2]
[351944398,1738855842503,-500.0,0.00013972,2]
[351944399,1738855842512,-500.0,0.00013972,2]
[351944400,1738855842522,-2313.89,0.00013972,2]
[351944401,1738855842531,-882.91,0.00013972,2]
[351944402,1738855842540,-1471.63,0.00013972,2]
[351944403,1738855842550,-500.0,0.00013972,2]
[351944404,1738855842559,-500.0,0.00013972,2]
[351944405,1738855842569,-894.96,0.00013972,2]
[351944406,1738855842578,-855.04,0.00013972,2]
[351944407,1738855842588,-1395.7,0.00013972,2]
[351944408,1738855842597,-3771.87,0.00013972,2]
[351944409,1738855842610,-506.3,0.00013972,2]
[351944410,1738855842619,-500.0,0.00013972,2]
[351944411,1738855842628,-705.15,0.00013972,2]
[351944412,1738855842638,-3228.54,0.00013972,2]
[351944413,1738855842647,-500.0,0.00013972,2]
[351944414,1738855842657,-9115.51,0.00013972,2]
[351944415,1738855842666,-1831.46,0.00013972,2]
[351944416,1738855842676,-500.0,0.00013972,2]
[351944417,1738855842685,-1136.51,0.00013972,2]
[351944418,1738855842694,-500.0,0.00013972,2]
[351944419,1738855842704,-500.0,0.00013972,2]
[351944420,1738855842713,-500.0,0.00013972,2]
[351944421,1738855842723,-500.0,0.00013972,2]
[351944422,1738855842732,-1024.74,0.00013972,2]
[351944423,1738855842742,-400.0,0.00013973,2]
[351944424,1738855842751,-200.0,0.00014,7]
[351944425,1738855842761,-200.0,0.00014,7]
[351944426,1738855842770,-306.0,0.00014,2]
[351944427,1738855842780,-1000.0,0.00014,14]
[351944428,1738855842789,-500.0,0.00014,5]
[351944429,1738855842798,-481.30366065,0.00014029,2]
[351944430,1738855842807,-166.66666666,0.00014055,2]
[351944431,1738855842817,-2703.50726441,0.000141,2]
[351944432,1738855842827,-2703.50726441,0.000141,2]
[351944433,1738855842836,-2703.50726441,0.000141,2]
[351944434,1738855842846,-2703.50726441,0.000141,2]
[351944435,1738855842855,-2703.50726441,0.000141,2]
[351944436,1738855842868,-2703.50726441,0.000141,2]
[351944437,1738855842877,-2703.50726441,0.000141,2]
[351944438,1738855842886,-2703.50726441,0.000141,2]
[351944439,1738855842896,-2703.50726441,0.000141,2]
[351944440,1738855842907,-2703.50726441,0.000141,2]
[351944441,1738855842916,-2703.50726441,0.000141,2]
[351944442,1738855842926,-2703.50726441,0.000141,2]
[351944443,1738855842936,-2703.50726441,0.000141,2]
[351944444,1738855842945,-2703.50726441,0.000141,2]
[351944445,1738855842954,-2703.50726441,0.000141,2]
[351944446,1738855842964,-2703.50726441,0.000141,2]
[351944447,1738855842973,-2703.50726441,0.000141,2]
[351944448,1738855842982,-2703.50726441,0.000141,2]
[351944449,1738855842992,-2703.50726441,0.000141,2]
[351944450,1738855843001,-2703.5,0.000141,2]
[351944451,1738855843010,-447.998,0.00014106,2]
[351944452,1738855843021,-500.0,0.00014109,2]
[351944453,1738855843030,-500.0,0.00014109,2]
[351944454,1738855843039,-1099.82,0.00014109,2]
[351944455,1738855843049,-300.69657918,0.00014109,2]
[351944456,1738855843058,-500.0,0.00014109,2]
[351944457,1738855843069,-500.0,0.00014109,2]
[351944458,1738855843078,-500.0,0.00014109,2]
[351944459,1738855843088,-500.0,0.00014109,2]
[351944460,1738855843097,-500.0,0.00014109,2]
[351944461,1738855843106,-639.87,0.00014109,2]
[351944462,1738855843116,-784.74,0.00014109,2]
[351944463,1738855843126,-500.0,0.00014109,2]
[351944464,1738855843135,-500.0,0.00014109,2]
[351944465,1738855843144,-554.36,0.00014109,2]
[351944466,1738855843154,-656.46,0.00014109,2]
[351944467,1738855843164,-500.0,0.00014109,2]
[351944468,1738855843173,-783.56,0.00014109,2]
[351944469,1738855843184,-500.0,0.00014109,2]
[351944470,1738855843193,-500.0,0.00014109,2]
[351944471,1738855843202,-500.0,0.00014109,2]
[351944472,1738855843212,-500.0,0.00014109,2]
[351944473,1738855843222,-500.0,0.00014109,2]
[351944474,1738855843230,-592.58467584,0.00014109,2]
[351944475,1738855843240,-1068.12,0.00014109,2]
[351944476,1738855843249,-500.0,0.00014109,2]
[351944477,1738855843258,-500.0,0.00014109,2]
[351944478,1738855843268,-891.36,0.00014109,2]
[351944479,1738855843278,-500.0,0.00014109,2]
[351944480,1738855843287,-1575.85,0.00014109,2]
[351944481,1738855843296,-1604.33,0.00014109,2]
[351944482,1738855843306,-634.35,0.00014109,2]
[351944483,1738855843316,-500.0,0.00014109,2]
[351944484,1738855843325,-620.85394826,0.00014109,2]
[351944485,1738855843334,-424.45,0.00014109,2]
[351944486,1738855843343,-500.0,0.00014109,2]
[351944487,1738855843353,-1085.4,0.00014109,2]
[351944488,1738855843365,-1068.38,0.00014109,2]
[351944489,1738855843375,-1420.56,0.00014109,2]
[351944490,1738855843384,-500.0,0.00014109,2]
[351944491,1738855843393,-500.0,0.00014109,2]
[351944492,1738855843404,-500.0,0.00014109,2]
[351944493,1738855843417,-500.0,0.00014109,2]
[351944494,1738855843427,-3501.32,0.00014109,2]
[351944495,1738855843436,-1296.02,0.00014109,2]
[351944496,1738855843447,-1412.14,0.00014109,2]
[351944497,1738855843458,-737.34,0.00014109,2]
[351944498,1738855843467,-3886.25,0.00014109,2]
[351944499,1738855843477,-608.58,0.00014109,2]
[351944500,1738855843492,-1070.88,0.00014109,2]
[351944501,1738855843502,-500.0,0.00014109,2]
[351944502,1738855843511,-500.0,0.00014109,2]
[351944503,1738855843521,-846.17,0.00014109,2]
[351944504,1738855843531,-500.0,0.00014109,2]
[351944505,1738855843540,-500.0,0.00014109,2]
[351944506,1738855843550,-1689.54,0.00014109,2]
[351944507,1738855843560,-739.77,0.00014109,2]
[351944508,1738855843569,-500.0,0.00014109,2]
[351944509,1738855843579,-1818.59,0.00014109,2]
[351944510,1738855843589,-1081.68,0.00014109,2]
[351944511,1738855843598,-712.22,0.00014109,2]
[351944512,1738855843610,-1093.29,0.00014109,2]
[351944513,1738855843619,-500.0,0.00014109,2]
[351944514,1738855843629,-791.37,0.00014109,2]
[351944515,1738855843638,-3150.73,0.00014109,2]
[351944516,1738855843648,-1206.52,0.00014109,2]
[351944517,1738855843658,-631.82,0.00014109,2]
[351944518,1738855843668,-500.0,0.00014109,2]
[351944519,1738855843678,-13824.48,0.00014109,2]
[351944520,1738855843687,-6878.96,0.00014109,2]
[351944521,1738855843696,-500.0,0.00014109,2]
[351944522,1738855843706,-500.0,0.00014109,2]
[351944523,1738855843715,-500.0,0.00014109,2]
[351944524,1738855843726,-500.0,0.00014109,2]
[351944525,1738855843735,-500.0,0.00014109,2]
[351944526,1738855843745,-725.78,0.00014109,2]
[351944527,1738855843755,-1062.18,0.00014109,2]
[351944528,1738855843765,-4363.92,0.00014109,2]
[351944529,1738855843774,-500.0,0.00014109,2]
[351944530,1738855843784,-1357.22,0.00014109,2]
[351944531,1738855843794,-500.0,0.00014109,2]
[351944532,1738855843803,-1695.35,0.00014109,2]
[351944533,1738855843813,-265.86682504,0.00014109,2]
[351944534,1738855843823,-500.0,0.00014109,2]
[351944535,1738855843832,-1311.73,0.00014109,2]
[351944536,1738855843841,-617.38,0.00014109,2]
[351944537,1738855843851,-6240.21,0.00014109,2]
[351944538,1738855843863,-4300.37,0.00014109,2]
[351944539,1738855843872,-509.96,0.00014109,2]
[351944540,1738855843882,-2257.7,0.00014109,2]
[351944541,1738855843891,-1203.39,0.00014109,2]
[351944542,1738855843901,-729.44,0.00014109,2]
[351944543,1738855843911,-637.90186043,0.00014109,2]
[351944544,1738855843921,-500.0,0.00014109,2]
[351944545,1738855843931,-2042.92,0.00014109,2]
[351944546,1738855843941,-17590.59,0.00014109,2]
[351944547,1738855843951,-500.0,0.00014109,2]
[351944548,1738855843962,-500.0,0.00014109,2]
[351944549,1738855843972,-36006.84,0.00014109,2]
[351944550,1738855843982,-500.0,0.00014109,2]
[351944551,1738855843991,-1022.1,0.00014109,2]
[351944552,1738855844001,-500.0,0.00014109,2]
[351944553,1738855844011,-1229.36,0.00014109,2]
[351944554,1738855844021,-1533.5,0.00014109,2]
[351944555,1738855844031,-520.32,0.00014109,2]
[351944556,1738855844041,-164.363906,0.00014109,2]
[351944557,1738855844050,-803.41,0.00014109,2]
[351944558,1738855844060,-500.0,0.00014109,2]
[351944559,1738855844070,-1671.88,0.00014109,2]
[351944560,1738855844079,-623.54,0.00014109,2]
[351944561,1738855844089,-2363.6,0.00014109,2]
[351944562,1738855844099,-500.0,0.00014109,2]
[351944563,1738855844111,-500.0,0.00014109,2]
[351944564,1738855844122,-470.98628233,0.00014109,2]
[351944565,1738855844131,-2313.89,0.00014109,2]
[351944566,1738855844141,-882.91,0.00014109,2]
[351944567,1738855844151,-1471.63,0.00014109,2]
[351944568,1738855844160,-500.0,0.00014109,2]
[351944569,1738855844170,-500.0,0.00014109,2]
[351944570,1738855844180,-894.96,0.00014109,2]
[351944571,1738855844189,-855.04,0.00014109,2]
[351944572,1738855844199,-1395.7,0.00014109,2]
[351944573,1738855844208,-3771.87,0.00014109,2]
[351944574,1738855844218,-506.3,0.00014109,2]
[351944575,1738855844228,-500.0,0.00014109,2]
[351944576,1738855844237,-705.15,0.00014109,2]
[351944577,1738855844247,-3228.54,0.00014109,2]
[351944578,1738855844257,-500.0,0.00014109,2]
[351944579,1738855844267,-9115.51,0.00014109,2]
[351944580,1738855844276,-1831.46,0.00014109,2]
[351944581,1738855844286,-500.0,0.00014109,2]
[351944582,1738855844296,-1136.51,0.00014109,2]
[351944583,1738855844306,-500.0,0.00014109,2]
[351944584,1738855844315,-500.0,0.00014109,2]
[351944585,1738855844324,-500.0,0.00014109,2]
[351944586,1738855844335,-595.88,0.00014109,2]
[351944587,1738855844344,-1024.74,0.00014109,2]
[351944588,1738855844353,-13262.49839917,0.00014154,2]
[351944589,1738855844367,-1858.7846375,0.00014156,2]
[351944590,1738855844377,-3189.98707425,0.000142,2]
[351944591,1738855844387,-6308.18361695,0.000142,2]
[351944592,1738855844396,-6308.18361695,0.000142,2]
[351944593,1738855844406,-6308.18361695,0.000142,2]
[351944594,1738855844419,-6308.18361695,0.000142,2]
[351944595,1738855844429,-6308.18361695,0.000142,2]
[351944596,1738855844439,-6308.18361695,0.000142,2]
[351944597,1738855844449,-6308.18361695,0.000142,2]
[351944598,1738855844459,-6308.18361695,0.000142,2]
[351944599,1738855844468,-6308.18361695,0.000142,2]
[351944600,1738855844478,-6308.18361695,0.000142,2]
[351944601,1738855844487,-6308.18361695,0.000142,2]
[351944602,1738855844498,-6308.18361695,0.000142,2]
[351944604,1738855844507,-6308.18361695,0.000142,2]
[351944605,1738855844517,-6308.18361695,0.000142,2]
[351944606,1738855844526,-6308.18361695,0.000142,2]
[351944607,1738855844535,-6308.18361695,0.000142,2]
[351944608,1738855844545,-6308.18361695,0.000142,2]
[351944609,1738855844554,-6308.18361695,0.000142,2]
[351944610,1738855844564,-6308.18361695,0.000142,2]
[351944611,1738855844574,-6308.18,0.000142,2]
[351944612,1738855844584,-153.0,0.000142,2]
[351944613,1738855844595,-153.0,0.000142,2]
[351944614,1738855844604,-153.0,0.000142,2]
[351944615,1738855844619,-153.0,0.000142,2]
[351944616,1738855844629,-153.0,0.000142,2]
[351944617,1738855844638,-153.0,0.000142,2]
[351944618,1738855844648,-228.9,0.000142,2]
[351944619,1738855844657,-238.27983348,0.00014215,2]
[351944620,1738855844667,-537.0,0.00014234,2]
[351944623,1738855844677,-1975.0,0.00014234,2]
[351944624,1738855844687,-2297.0,0.00014234,2]
[351944625,1738855844696,-500.0,0.00014238,2]
[351944626,1738855844706,-500.0,0.00014246,2]
[351944627,1738855844716,-425.99136718,0.00014246,2]
[351944628,1738855844726,-1099.82,0.00014246,2]
[351944629,1738855844864,-500.0,0.00014246,2]
[351944631,1738855844897,-500.0,0.00014246,2]
[351944634,1738855844907,-500.0,0.00014246,2]
[351944636,1738855844917,-500.0,0.00014246,2]
[351944638,1738855844927,-409.83,0.00014246,2]
[351944639,1738855844937,-639.87,0.00014246,2]
[351944640,1738855844946,-784.74,0.00014246,2]
[351944641,1738855844956,-500.0,0.00014246,2]
[351944642,1738855844965,-500.0,0.00014246,2]
[351944644,1738855844975,-554.36,0.00014246,2]
[351944646,1738855844984,-656.46,0.00014246,2]
[351944648,1738855844994,-500.0,0.00014246,2]
[351944650,1738855845003,-783.56,0.00014246,2]
[351944652,1738855845012,-500.0,0.00014246,2]
[351944655,1738855845022,-500.0,0.00014246,2]
[351944658,1738855845031,-414.04867786,0.00014246,2]
[351944661,1738855845040,-500.0,0.00014246,2]
[351944664,1738855845050,-500.0,0.00014246,2]
[351944666,1738855845060,-1068.12,0.00014246,2]
[351944669,1738855845069,-500.0,0.00014246,2]
[351944671,1738855845079,-389.11521963,0.00014246,2]
[351944673,1738855845088,-891.36,0.00014246,2]
[351944675,1738855845097,-420.91296156,0.00014246,2]
[351944676,1738855845107,-1575.85,0.00014246,2]
[351944677,1738855845119,-1604.33,0.00014246,2]
[351944678,1738855845129,-634.35,0.00014246,2]
[351944679,1738855845139,-562.87962465,0.00014246,2]
[351944680,1738855845148,-500.0,0.00014246,2]
[351944681,1738855845159,-1085.4,0.00014246,2]
[351944682,1738855845169,-1068.38,0.00014246,2]
[351944683,1738855845179,-1420.56,0.00014246,2]
[351944685,1738855845189,-500.0,0.00014246,2]
[351944687,1738855845200,-500.0,0.00014246,2]
[351944689,1738855845209,-500.0,0.00014246,2]
[351944691,1738855845219,-500.0,0.00014246,2]
[351944692,1738855845229,-3501.32,0.00014246,2]
[351944693,1738855845239,-1296.02,0.00014246,2]
[351944694,1738855845249,-1412.14,0.00014246,2]
[351944695,1738855845259,-737.34,0.00014246,2]
[351944696,1738855845268,-3886.25,0.00014246,2]
[351944697,1738855845278,-608.58,0.00014246,2]
[351944698,1738855845288,-1070.88,0.00014246,2]
[351944699,1738855845298,-500.0,0.00014246,2]
[351944700,1738855845308,-500.0,0.00014246,2]
[351944701,1738855845317,-846.17,0.00014246,2]
[351944702,1738855845327,-500.0,0.00014246,2]
[351944703,1738855845337,-500.0,0.00014246,2]
[351944704,1738855845346,-1689.54,0.00014246,2]
[351944705,1738855845357,-739.77,0.00014246,2]
[351944706,1738855845371,-500.0,0.00014246,2]
[351944707,1738855845380,-1818.59,0.00014246,2]
[351944708,1738855845390,-1081.68,0.00014246,2]
[351944709,1738855845400,-712.22,0.00014246,2]
[351944710,1738855845411,-1093.29,0.00014246,2]
[351944711,1738855845424,-500.0,0.00014246,2]
[351944713,1738855845433,-791.37,0.00014246,2]
[351944714,1738855845443,-3150.73,0.00014246,2]
[351944715,1738855845454,-1206.52,0.00014246,2]
[351944716,1738855845464,-631.82,0.00014246,2]
[351944717,1738855845474,-500.0,0.00014246,2]
[351944718,1738855845483,-13824.48,0.00014246,2]
[351944719,1738855845493,-6878.96,0.00014246,2]
[351944721,1738855845503,-500.0,0.00014246,2]
[351944722,1738855845512,-500.0,0.00014246,2]
[351944723,1738855845522,-441.5,0.00014246,2]
[351944724,1738855845531,-725.78,0.00014246,2]
[351944725,1738855845540,-1062.18,0.00014246,2]
[351944726,1738855845550,-4363.92,0.00014246,2]
[351944727,1738855845559,-500.0,0.00014246,2]
[351944728,1738855845568,-1357.22,0.00014246,2]
[351944729,1738855845578,-1695.35,0.00014246,2]
[351944730,1738855845587,-585.26779649,0.00014246,2]
[351944731,1738855845597,-1311.73,0.00014246,2]
[351944732,1738855845606,-617.38,0.00014246,2]
[351944733,1738855845619,-6240.21,0.00014246,2]
[351944734,1738855845628,-4300.37,0.00014246,2]
[351944735,1738855845638,-509.96,0.00014246,2]
[351944736,1738855845647,-2257.7,0.00014246,2]
[351944738,1738855845657,-1203.39,0.00014246,2]
[351944740,1738855845667,-729.44,0.00014246,2]
[351944741,1738855845677,-500.0,0.00014246,2]
[351944742,1738855845686,-2042.92,0.00014246,2]
[351944743,1738855845696,-17590.59,0.00014246,2]
[351944744,1738855845705,-500.0,0.00014246,2]
[351944745,1738855845715,-500.0,0.00014246,2]
[351944746,1738855845724,-36006.84,0.00014246,2]
[351944747,1738855845733,-500.0,0.00014246,2]
[351944748,1738855845743,-1022.1,0.00014246,2]
[351944749,1738855845753,-500.0,0.00014246,2]
[351944750,1738855845764,-1229.36,0.00014246,2]
[351944752,1738855845775,-1533.5,0.00014246,2]
[351944754,1738855845787,-520.32,0.00014246,2]
[351944756,1738855845798,-803.41,0.00014246,2]
[351944758,1738855845809,-500.0,0.00014246,2]
[351944759,1738855845820,-623.54,0.00014246,2]
[351944761,1738855845831,-1671.88,0.00014246,2]
[351944762,1738855845842,-2363.6,0.00014246,2]
[351944763,1738855845854,-500.0,0.00014246,2]
[351944764,1738855845875,-500.0,0.00014246,2]
[351944765,1738855845889,-2313.89,0.00014246,2]
[351944767,1738855845899,-882.91,0.00014246,2]
[351944769,1738855845910,-1471.63,0.00014246,2]
[351944771,1738855845920,-500.0,0.00014246,2]
[351944772,1738855845931,-500.0,0.00014246,2]
[351944773,1738855845942,-894.96,0.00014246,2]
[351944774,1738855845951,-855.04,0.00014246,2]